fUSD/lending_fUSD_20240612
["ID","MTS","AMOUNT","RATE_DAILY","PERIOD"]
[329206277,1718179868655,-500.0,0.00019452,2]
[329206278,1718179868673,-500.0,0.00019452,2]
[329206279,1718179868684,-2999.85,0.00019452,2]
[329206280,1718179868704,-485.47457226,0.00019452,2]
[329206281,1718179868729,-500.0,0.00019452,2]
[329206282,1718179868739,-553.14627081,0.00019452,2]
[329206283,1718179868796,-500.0,0.00019452,2]
[329206284,1718179868819,-500.0,0.00019452,2]
[329206285,1718179868852,-500.0,0.00019452,2]
[329206286,1718179868877,-500.0,0.00019452,2]
[329206287,1718179868891,-965.08,0.00019452,2]
[329206288,1718179868931,-500.0,0.00019452,2]
[329206289,1718179868944,-500.0,0.00019452,2]
[329206290,1718179868956,-500.0,0.00019452,2]
[329206291,1718179868972,-500.0,0.00019452,2]
[329206292,1718179868998,-500.0,0.00019452,2]
[329206293,1718179869014,-500.0,0.00019452,2]
[329206294,1718179869027,-367.81866819,0.00019452,2]
[329206295,1718179869052,-151.0,0.00019452,2]
[329206296,1718179869091,-500.0,0.00019452,2]
[329206297,1718179869105,-557.78864647,0.00019452,2]
[329206298,1718179869125,-500.0,0.00019452,2]
[329206299,1718179869139,-500.0,0.00019452,2]
[329206300,1718179869151,-500.0,0.00019452,2]
[329206301,1718179869166,-500.0,0.00019452,2]
[329206302,1718179869192,-500.0,0.00019452,2]
[329206303,1718179869206,-500.0,0.00019452,2]
[329206304,1718179869248,-500.0,0.00019452,2]
[329206305,1718179869259,-500.0,0.00019452,2]
[329206306,1718179869277,-778.27,0.00019452,2]
[329206307,1718179869290,-500.0,0.00019452,2]
[329206308,1718179869346,-500.0,0.00019452,2]
[329206309,1718179869363,-500.0,0.00019452,2]
[329206310,1718179869374,-500.0,0.00019452,2]
[329206311,1718179869384,-266.36888649,0.00019452,2]
[329206312,1718179869400,-518.38,0.00019452,2]
[329206313,1718179869416,-500.0,0.00019452,2]
[329206314,1718179869433,-651.15,0.00019452,2]
[329206315,1718179869454,-544.62,0.00019452,2]
[329206316,1718179869468,-500.0,0.00019452,2]
[329206317,1718179869478,-500.0,0.00019452,2]
[329206318,1718179869488,-606.45,0.00019452,2]
[329206319,1718179869505,-500.0,0.00019452,2]
[329206320,1718179869539,-500.0,0.00019452,2]
[329206321,1718179869554,-540.46,0.00019452,2]
[329206322,1718179869566,-1056.74,0.00019452,2]
[329206323,1718179869580,-500.0,0.00019452,2]
[329206324,1718179869595,-500.0,0.00019452,2]
[329206325,1718179869645,-500.0,0.00019452,2]
[329206326,1718179869661,-500.0,0.00019452,2]
[329206327,1718179869681,-578.43,0.00019452,2]
[329206328,1718179869708,-500.0,0.00019452,2]
[329206329,1718179869749,-1024.84,0.00019452,2]
[329206330,1718179869759,-500.0,0.00019452,2]
[329206331,1718179869769,-500.0,0.00019452,2]
[329206332,1718179869780,-500.0,0.00019452,2]
[329206333,1718179869805,-500.0,0.00019452,2]
[329206334,1718179869829,-500.0,0.00019452,2]
[329206335,1718179869850,-500.0,0.00019452,2]
[329206336,1718179869863,-500.0,0.00019452,2]
[329206337,1718179869890,-500.0,0.00019452,2]
[329206338,1718179869903,-500.0,0.00019452,2]
[329206339,1718179869921,-500.0,0.00019452,2]
[329206340,1718179869933,-500.0,0.00019452,2]
[329206341,1718179869946,-500.0,0.00019452,2]
[329206342,1718179869962,-500.0,0.00019452,2]
[329206343,1718179869975,-536.07,0.00019452,2]
[329206344,1718179869987,-500.0,0.00019452,2]
[329206345,1718179870015,-500.0,0.00019452,2]
[329206346,1718179870030,-578.97209449,0.00019452,2]
[329206347,1718179870041,-500.0,0.00019452,2]
[329206348,1718179870055,-707.31,0.00019452,2]
[329206349,1718179870069,-1691.32,0.00019452,2]
[329206350,1718179870080,-500.0,0.00019452,2]
[329206351,1718179870092,-500.0,0.00019452,2]
[329206352,1718179870104,-500.0,0.00019452,2]
[329206353,1718179870129,-500.0,0.00019452,2]
[329206354,1718179870153,-500.0,0.00019452,2]
[329206355,1718179870178,-718.6,0.00019452,2]
[329206356,1718179870202,-1353.94,0.00019452,2]
[329206357,1718179870217,-676.25,0.00019452,2]
[329206358,1718179870236,-500.0,0.00019452,2]
[329206359,1718179870249,-500.0,0.00019452,2]
[329206360,1718179870260,-500.0,0.00019452,2]
[329206361,1718179870272,-836.78,0.00019452,2]
[329206362,1718179870284,-500.0,0.00019452,2]
[329206363,1718179870295,-150.0,0.00019452,2]
[329206364,1718179870307,-500.0,0.00019452,2]
[329206365,1718179870320,-500.0,0.00019452,2]
[329206366,1718179870336,-854.16,0.00019452,2]
[329206367,1718179870349,-500.0,0.00019452,2]
[329206368,1718179870363,-500.0,0.00019452,2]
[329206369,1718179870390,-835.22,0.00019452,2]
[329206370,1718179870428,-500.0,0.00019452,2]
[329206371,1718179870448,-500.0,0.00019452,2]
[329206372,1718179870460,-500.0,0.00019452,2]
[329206373,1718179870472,-500.0,0.00019452,2]
[329206374,1718179870504,-587.12,0.00019452,2]
[329206375,1718179870519,-500.0,0.00019452,2]
[329206376,1718179870552,-500.0,0.00019452,2]
[329206377,1718179870565,-2397.48,0.00019452,2]
[329206378,1718179870577,-500.0,0.00019452,2]
[329206379,1718179870604,-500.0,0.00019452,2]
[329206380,1718179870617,-695.08,0.00019452,2]
[329206381,1718179870645,-500.0,0.00019452,2]
[329206382,1718179870659,-500.0,0.00019452,2]
[329206383,1718179870672,-500.0,0.00019452,2]
[329206384,1718179870687,-500.0,0.00019452,2]
[329206385,1718179870700,-500.0,0.00019452,2]
[329206386,1718179870714,-500.0,0.00019452,2]
[329206387,1718179870726,-1151.02,0.00019452,2]
[329206388,1718179870741,-524.23545236,0.00019452,2]
[329206389,1718179870759,-500.0,0.00019452,2]
[329206390,1718179870774,-500.0,0.00019452,2]
[329206391,1718179870788,-632.89,0.00019452,2]
[329206392,1718179870828,-562.35,0.00019452,2]
[329206393,1718179870851,-500.0,0.00019452,2]
[329206394,1718179870868,-814.74,0.00019452,2]
[329206395,1718179870881,-500.0,0.00019452,2]
[329206396,1718179870904,-500.0,0.00019452,2]
[329206397,1718179870918,-788.12,0.00019452,2]
[329206398,1718179870931,-692.77,0.00019452,2]
[329206399,1718179870944,-500.0,0.00019452,2]
[329206400,1718179870968,-500.0,0.00019452,2]
[329206401,1718179870984,-500.0,0.00019452,2]
[329206402,1718179871004,-801.05,0.00019452,2]
[329206403,1718179871019,-2426.35,0.00019452,2]
[329206404,1718179871041,-500.0,0.00019452,2]
[329206405,1718179871054,-500.0,0.00019452,2]
[329206406,1718179871065,-500.0,0.00019452,2]
[329206407,1718179871076,-667.95,0.00019452,2]
[329206408,1718179871088,-500.0,0.00019452,2]
[329206409,1718179871104,-701.84,0.00019452,2]
[329206410,1718179871120,-1312.22,0.00019452,2]
[329206411,1718179871134,-500.0,0.00019452,2]
[329206412,1718179871157,-855.19,0.00019452,2]
[329206413,1718179871171,-500.0,0.00019452,2]
[329206414,1718179871183,-500.0,0.00019452,2]
[329206415,1718179871202,-500.0,0.00019452,2]
[329206416,1718179871229,-5154.03,0.00019452,2]
[329206417,1718179871243,-515.04630765,0.00019452,2]
[329206418,1718179871258,-500.0,0.00019452,2]
[329206419,1718179871278,-500.0,0.00019452,2]
[329206420,1718179871291,-571.46,0.00019452,2]
[329206421,1718179871303,-500.0,0.00019452,2]
[329206422,1718179871315,-151.0,0.00019452,2]
[329206423,1718179871326,-1878.34,0.00019452,2]
[329206424,1718179871338,-500.0,0.00019452,2]
[329206425,1718179871363,-1104.84,0.00019452,2]
[329206426,1718179871374,-500.0,0.00019452,2]
[329206427,1718179871386,-500.0,0.00019452,2]
[329206428,1718179871402,-627.95,0.00019452,2]
[329206429,1718179871420,-1013.51,0.00019452,2]
[329206430,1718179871436,-500.0,0.00019452,2]
[329206431,1718179871447,-151.0,0.00019452,2]
[329206432,1718179871477,-1682.34,0.00019452,2]
[329206433,1718179871499,-500.0,0.00019452,2]
[329206434,1718179871521,-151.0,0.00019452,2]
[329206435,1718179871561,-500.0,0.00019452,2]
[329206436,1718179871573,-554.42,0.00019452,2]
[329206437,1718179871590,-500.0,0.00019452,2]
[329206438,1718179871615,-657.62,0.00019452,2]
[329206439,1718179871627,-556.25,0.00019452,2]
[329206440,1718179871640,-1495.23,0.00019452,2]
[329206441,1718179871655,-602.14,0.00019452,2]
[329206442,1718179871671,-1341.78,0.00019452,2]
[329206443,1718179871693,-1140.33,0.00019452,2]
[329206444,1718179871713,-204.382934,0.00019452,2]
[329206445,1718179871747,-500.0,0.00019452,2]
[329206446,1718179871770,-500.0,0.00019452,2]
[329206447,1718179871786,-786.61,0.00019452,2]
[329206448,1718179871813,-204.382934,0.00019452,2]
[329206449,1718179871831,-1464.63,0.00019452,2]
[329206450,1718179871846,-500.0,0.00019452,2]
[329206451,1718179871857,-500.0,0.00019452,2]
[329206452,1718179871874,-3094.25,0.00019452,2]
[329206453,1718179871887,-548.65,0.00019452,2]
[329206454,1718179871898,-729.37,0.00019452,2]
[329206455,1718179871911,-500.0,0.00019452,2]
[329206456,1718179871923,-500.0,0.00019452,2]
[329206457,1718179871941,-2263.73,0.00019452,2]
[329206458,1718179871954,-765.32,0.00019452,2]
[329206459,1718179871969,-500.0,0.00019452,2]
[329206460,1718179871981,-500.0,0.00019452,2]
[329206461,1718179871992,-500.0,0.00019452,2]
[329206462,1718179872006,-1702.33,0.00019452,2]
[329206463,1718179872023,-725.2,0.00019452,2]
[329206464,1718179872036,-1162.18,0.00019452,2]
[329206465,1718179872048,-702.53,0.00019452,2]
[329206466,1718179872060,-500.0,0.00019452,2]
[329206467,1718179872073,-1306.52,0.00019452,2]
[329206468,1718179872091,-500.0,0.00019452,2]
[329206469,1718179872111,-8345.51,0.00019452,2]
[329206470,1718179872123,-767.7,0.00019452,2]
[329206471,1718179872134,-669.7,0.00019452,2]
[329206472,1718179872145,-4404.89,0.00019452,2]
[329206473,1718179872156,-5540.12,0.00019452,2]
[329206474,1718179872168,-500.0,0.00019452,2]
[329206475,1718179872178,-3202.06,0.00019452,2]
[329206476,1718179872189,-645.85,0.00019452,2]
[329206477,1718179872200,-440.396966,0.00019452,2]
[329206478,1718179872210,-708.44,0.00019452,2]
[329206479,1718179872221,-1864.65,0.00019452,2]
[329206480,1718179872232,-440.396966,0.00019452,2]
[329206481,1718179872245,-257.23947308,0.00019452,2]
[329206482,1718179872261,-650.82,0.00019452,2]
[329206483,1718179872280,-3275.86,0.00019452,2]
[329206484,1718179872291,-3174.73,0.00019452,2]
[329206485,1718179872304,-1358.37,0.00019452,2]
[329206486,1718179872315,-532.25,0.00019452,2]
[329206487,1718179872326,-758.42,0.00019452,2]
[329206488,1718179872338,-500.0,0.00019452,2]
[329206489,1718179872349,-1640.18,0.00019452,2]
[329206490,1718179872364,-636.78116668,0.00019452,2]
[329206491,1718179872376,-6201.69,0.00019452,2]
[329206492,1718179872393,-500.0,0.00019452,2]
[329206493,1718179872405,-1305.49,0.00019452,2]
[329206494,1718179872418,-869.55,0.00019452,2]
[329206495,1718179872433,-500.0,0.00019452,2]
[329206496,1718179872446,-500.0,0.00019452,2]
[329206497,1718179872459,-741.75,0.00019452,2]
[329206498,1718179872471,-500.0,0.00019452,2]
[329206499,1718179872482,-500.0,0.00019452,2]
[329206500,1718179872493,-1607.87,0.00019452,2]
[329206501,1718179872505,-500.0,0.00019452,2]
[329206502,1718179872516,-2431.96,0.00019452,2]
[329206503,1718179872527,-500.0,0.00019452,2]
[329206504,1718179872537,-3330.66,0.00019452,2]
[329206505,1718179872548,-13640.9,0.00019452,2]
[329206506,1718179872559,-500.0,0.00019452,2]
[329206507,1718179872570,-959.76,0.00019452,2]
[329206508,1718179872581,-985.74,0.00019452,2]
[329206509,1718179872592,-20922.27,0.00019452,2]
[329206510,1718179872603,-781.81,0.00019452,2]
[329206511,1718179872614,-646.05,0.00019452,2]
[329206512,1718179872626,-2448.83,0.00019452,2]
[329206513,1718179872637,-500.0,0.00019452,2]
[329206514,1718179872648,-151.0,0.00019452,2]
[329206515,1718179872659,-1431.31,0.00019452,2]
[329206516,1718179872671,-1683.61,0.00019452,2]
[329206517,1718179872683,-4769.74,0.00019452,2]
[329206518,1718179872700,-732.06,0.00019452,2]
[329206519,1718179872711,-500.0,0.00019452,2]
[329206520,1718179872722,-528.34,0.00019452,2]
[329206521,1718179872733,-752.97,0.00019452,2]
[329206522,1718179872746,-8377.53,0.00019452,2]
[329206523,1718179872757,-2216.48,0.00019452,2]
[329206524,1718179872768,-3266.79,0.00019452,2]
[329206525,1718179872780,-500.0,0.00019452,2]
[329206526,1718179872814,-850.88,0.00019452,2]
[329206527,1718179872836,-1690.57,0.00019452,2]
[329206528,1718179872847,-599.3,0.00019452,2]
[329206529,1718179872858,-1406.49,0.00019452,2]
[329206530,1718179872869,-500.0,0.00019452,2]
[329206531,1718179872880,-2196.58,0.00019452,2]
[329206532,1718179872891,-500.0,0.00019452,2]
[329206533,1718179872902,-1073.07,0.00019452,2]
[329206534,1718179872916,-2273.25,0.00019452,2]
[329206535,1718179872928,-798.97,0.00019452,2]
[329206536,1718179872938,-611.43,0.00019452,2]
[329206537,1718179872949,-946.15,0.00019452,2]
[329206538,1718179872960,-1156.44,0.00019452,2]
[329206539,1718179872974,-500.0,0.00019452,2]
[329206540,1718179872984,-1214.62,0.00019452,2]
[329206541,1718179872996,-1976.41,0.00019452,2]
[329206542,1718179873008,-151.0,0.00019452,2]
[329206543,1718179873172,-500.0,0.00019452,2]
[329206544,1718179873221,-500.0,0.00019452,2]
[329206545,1718179873232,-500.0,0.00019452,2]
[329206546,1718179873243,-827.97,0.00019452,2]
[329206547,1718179873254,-2301.96,0.00019452,2]
[329206548,1718179873265,-500.0,0.00019452,2]
[329206549,1718179873276,-500.0,0.00019452,2]
[329206550,1718179873288,-1787.41,0.00019452,2]
[329206551,1718179873299,-712.85,0.00019452,2]
[329206552,1718179873321,-2018.59,0.00019452,2]
[329206553,1718179873333,-776.27,0.00019452,2]
[329206554,1718179873344,-500.0,0.00019452,2]
[329206555,1718179873355,-500.0,0.00019452,2]
[329206556,1718179873367,-3499.28,0.00019452,2]
[329206557,1718179873379,-2334.85,0.00019452,2]
[329206558,1718179873390,-500.0,0.00019452,2]
[329206559,1718179873401,-500.0,0.00019452,2]
[329206560,1718179873411,-1624.86,0.00019452,2]
[329206561,1718179873423,-151.0,0.00019452,2]
[329206562,1718179873437,-1631.49,0.00019452,2]
[329206563,1718179873447,-151.0,0.00019452,2]
[329206564,1718179873458,-500.0,0.00019452,2]
[329206565,1718179873470,-500.0,0.00019452,2]
[329206566,1718179873480,-522.67,0.00019452,2]
[329206567,1718179873492,-588.24,0.00019452,2]
[329206568,1718179873505,-581.13,0.00019452,2]
[329206569,1718179873518,-2080.69,0.00019452,2]
[329206570,1718179873529,-1563.88,0.00019452,2]
[329206571,1718179873543,-500.0,0.00019452,2]
[329206572,1718179873554,-579.52,0.00019452,2]
[329206573,1718179873564,-500.0,0.00019452,2]
[329206574,1718179873579,-815.55,0.00019452,2]
[329206575,1718179873592,-1713.36,0.00019452,2]
[329206576,1718179873605,-500.0,0.00019452,2]
[329206577,1718179873618,-630.18,0.00019452,2]
[329206578,1718179873632,-561.92,0.00019452,2]
[329206579,1718179873645,-862.44,0.00019452,2]
[329206580,1718179873660,-2346.36,0.00019452,2]
[329206581,1718179873674,-315.15917767,0.00019452,2]
[329206582,1718179873685,-841.69,0.00019452,2]
[329206583,1718179873697,-151.0,0.00019452,2]
[329206584,1718179873709,-1435.09,0.00019452,2]
[329206585,1718179873722,-680.87,0.00019452,2]
[329206586,1718179873736,-500.0,0.00019452,2]
[329206587,1718179873750,-500.0,0.00019452,2]
[329206588,1718179873767,-500.0,0.00019452,2]
[329206589,1718179873783,-500.0,0.00019452,2]
[329206590,1718179873824,-1088.82,0.00019452,2]
[329206591,1718179873841,-1513.03,0.00019452,2]
[329206592,1718179873868,-274.009725,0.00019452,2]
[329206593,1718179873883,-500.0,0.00019452,2]
[329206594,1718179873902,-598.23,0.00019452,2]
[329206595,1718179873935,-1610.34,0.00019452,2]
[329206596,1718179873949,-1146.85,0.00019452,2]
[329206597,1718179873961,-500.0,0.00019452,2]
[329206598,1718179873973,-2935.06,0.00019452,2]
[329206599,1718179873986,-367.611845,0.00019452,2]
[329206600,1718179873998,-234.857117,0.00019452,2]
[329206601,1718179874012,-1560.5,0.00019452,2]
[329206602,1718179874025,-1110.46,0.00019452,2]
[329206603,1718179874037,-3368.07,0.00019452,2]
[329206604,1718179874051,-500.0,0.00019452,2]
[329206605,1718179874061,-500.0,0.00019452,2]
[329206606,1718179874077,-1458.49,0.00019452,2]
[329206607,1718179874091,-367.611845,0.00019452,2]
[329206608,1718179874103,-1622.89,0.00019452,2]
[329206609,1718179874116,-500.0,0.00019452,2]
[329206610,1718179874130,-659.53,0.00019452,2]
[329206611,1718179874141,-500.0,0.00019452,2]
[329206612,1718179874153,-500.0,0.00019452,2]
[329206613,1718179874169,-4021.68,0.00019452,2]
[329206614,1718179874186,-500.0,0.00019452,2]
[329206615,1718179874211,-1850.34,0.00019452,2]
[329206616,1718179874282,-4181.59,0.00019452,2]
[329206617,1718179874298,-500.0,0.00019452,2]
[329206618,1718179874313,-500.0,0.00019452,2]
[329206619,1718179874325,-500.0,0.00019452,2]
[329206620,1718179874339,-6014.5,0.00019452,2]
[329206621,1718179874351,-654.73,0.00019452,2]
[329206622,1718179874363,-1952.21,0.00019452,2]
[329206623,1718179874375,-1117.79,0.00019452,2]
[329206624,1718179874387,-1297.98,0.00019452,2]
[329206625,1718179874398,-500.0,0.00019452,2]
[329206626,1718179874411,-564.66,0.00019452,2]
[329206627,1718179874426,-519.65,0.00019452,2]
[329206628,1718179874441,-1076.94,0.00019452,2]
[329206629,1718179874453,-1166.76,0.00019452,2]
[329206630,1718179874468,-2703.35,0.00019452,2]
[329206631,1718179874489,-1069.66,0.00019452,2]
[329206632,1718179874518,-500.0,0.00019452,2]
[329206633,1718179874550,-1867.83,0.00019452,2]
[329206634,1718179874567,-500.0,0.00019452,2]
[329206635,1718179874585,-565.97,0.00019452,2]
[329206636,1718179874597,-776.3,0.00019452,2]
[329206637,1718179874608,-1848.86,0.00019452,2]
[329206638,1718179874621,-2575.38,0.00019452,2]
[329206639,1718179874632,-521.86,0.00019452,2]
[329206640,1718179874644,-2537.91,0.00019452,2]
[329206641,1718179874657,-500.0,0.00019452,2]
[329206642,1718179874667,-500.0,0.00019452,2]
[329206643,1718179874679,-1628.72,0.00019452,2]
[329206644,1718179874691,-500.0,0.00019452,2]
[329206645,1718179874703,-151.0,0.00019452,2]
[329206646,1718179874714,-783.13,0.00019452,2]
[329206647,1718179874725,-1499.34,0.00019452,2]
[329206648,1718179874736,-417.62,0.00019452,2]
[329206649,1718179874748,-417.62,0.00019452,2]
[329206650,1718179874760,-410.37,0.00019452,2]
[329206651,1718179874773,-600.0,0.00019499,2]
[329206652,1718179874784,-1354297.97283884,0.000195,2]
[329206653,1718179874815,-151.0,0.000195,2]
[329206654,1718179874831,-238.063039,0.000195,2]
[329206655,1718179874842,-151.0,0.000195,2]
[329206656,1718179874854,-151.0,0.000195,2]
[329206657,1718179874873,-151.0,0.000195,2]
[329206658,1718179874887,-151.0,0.000195,2]
[329206659,1718179874900,-204.382934,0.000195,2]
[329206660,1718179874921,-204.382934,0.000195,2]
[329206661,1718179874932,-440.396966,0.000195,2]
[329206662,1718179874944,-440.396966,0.000195,2]
[329206663,1718179874955,-151.0,0.000195,2]
[329206664,1718179874968,-151.0,0.000195,2]
[329206665,1718179874979,-151.0,0.000195,2]
[329206666,1718179874996,-151.0,0.000195,2]
[329206667,1718179875009,-151.0,0.000195,2]
[329206668,1718179875020,-367.611845,0.000195,2]
[329206669,1718179875032,-367.611845,0.000195,2]
[329206670,1718179875043,-151.0,0.000195,2]
[329206671,1718179875055,-157.2,0.00019585,2]
[329206672,1718179875067,-500.0,0.00019589,2]
[329206673,1718179875079,-778.55,0.00019589,2]
[329206674,1718179875089,-500.0,0.00019589,2]
[329206675,1718179875103,-500.0,0.00019589,2]
[329206676,1718179875114,-500.0,0.00019589,2]
[329206677,1718179875125,-500.0,0.00019589,2]
[329206678,1718179875136,-500.0,0.00019589,2]
[329206679,1718179875147,-500.0,0.00019589,2]
[329206680,1718179875158,-500.0,0.00019589,2]
[329206681,1718179875169,-500.0,0.00019589,2]
[329206682,1718179875180,-500.0,0.00019589,2]
[329206683,1718179875190,-500.0,0.00019589,2]
[329206684,1718179875202,-500.0,0.00019589,2]
[329206685,1718179875214,-183.64868217,0.00019589,2]
[329206686,1718179875226,-500.0,0.00019589,2]
[329206687,1718179875237,-325.02959156,0.00019589,2]
[329206688,1718179875248,-500.0,0.00019589,2]
[329206689,1718179875259,-500.0,0.00019589,2]
[329206690,1718179875270,-500.0,0.00019589,2]
[329206691,1718179875280,-592.95,0.00019589,2]
[329206692,1718179875291,-500.0,0.00019589,2]
[329206693,1718179875303,-500.0,0.00019589,2]
[329206694,1718179875314,-500.0,0.00019589,2]
[329206695,1718179875325,-764.7,0.00019589,2]
[329206696,1718179875335,-773.85,0.00019589,2]
[329206697,1718179875346,-500.0,0.00019589,2]
[329206698,1718179875356,-500.0,0.00019589,2]
[329206699,1718179875367,-500.0,0.00019589,2]
[329206700,1718179875378,-500.0,0.00019589,2]
[329206701,1718179875389,-500.0,0.00019589,2]
[329206702,1718179875400,-500.0,0.00019589,2]
[329206703,1718179875412,-500.0,0.00019589,2]
[329206704,1718179875423,-500.0,0.00019589,2]
[329206705,1718179875433,-667.4,0.00019589,2]
[329206706,1718179875444,-500.0,0.00019589,2]
[329206707,1718179875455,-500.0,0.00019589,2]
[329206708,1718179875466,-500.0,0.00019589,2]
[329206709,1718179875476,-500.0,0.00019589,2]
[329206710,1718179875491,-500.0,0.00019589,2]
[329206711,1718179875506,-433.19936032,0.00019589,2]
[329206712,1718179875522,-500.0,0.00019589,2]
[329206713,1718179875536,-500.0,0.00019589,2]
[329206714,1718179875552,-500.0,0.00019589,2]
[329206715,1718179875568,-500.0,0.00019589,2]
[329206716,1718179875588,-500.0,0.00019589,2]
[329206717,1718179875601,-716.21,0.00019589,2]
[329206718,1718179875614,-500.0,0.00019589,2]
[329206719,1718179875626,-500.0,0.00019589,2]
[329206720,1718179875648,-500.0,0.00019589,2]
[329206721,1718179875660,-500.0,0.00019589,2]
[329206722,1718179875672,-697.14,0.00019589,2]
[329206723,1718179875691,-500.0,0.00019589,2]
[329206724,1718179875704,-500.0,0.00019589,2]
[329206725,1718179875718,-500.0,0.00019589,2]
[329206726,1718179875731,-500.0,0.00019589,2]
[329206727,1718179875745,-500.0,0.00019589,2]
[329206728,1718179875764,-500.0,0.00019589,2]
[329206729,1718179875778,-500.0,0.00019589,2]
[329206730,1718179875807,-500.0,0.00019589,2]
[329206731,1718179875833,-500.0,0.00019589,2]
[329206732,1718179875845,-500.0,0.00019589,2]
[329206733,1718179875856,-1218.09,0.00019589,2]
[329206734,1718179875868,-500.0,0.00019589,2]
[329206735,1718179875879,-500.0,0.00019589,2]
[329206736,1718179875890,-756.11,0.00019589,2]
[329206737,1718179875902,-500.0,0.00019589,2]
[329206738,1718179875918,-500.0,0.00019589,2]
[329206739,1718179875931,-651.5,0.00019589,2]
[329206740,1718179875944,-500.0,0.00019589,2]
[329206741,1718179875956,-500.0,0.00019589,2]
[329206742,1718179875968,-487.01808433,0.00019589,2]
[329206743,1718179875979,-500.0,0.00019589,2]
[329206744,1718179875991,-2999.85,0.00019589,2]
[329206745,1718179876006,-500.0,0.00019589,2]
[329206746,1718179876016,-500.0,0.00019589,2]
[329206747,1718179876026,-500.0,0.00019589,2]
[329206748,1718179876348,-500.0,0.00019589,2]
[329206749,1718179876363,-500.0,0.00019589,2]
[329206750,1718179876374,-965.08,0.00019589,2]
[329206751,1718179876386,-500.0,0.00019589,2]
[329206752,1718179876397,-500.0,0.00019589,2]
[329206753,1718179876408,-500.0,0.00019589,2]
[329206754,1718179876419,-632.14365386,0.00019589,2]
[329206755,1718179876430,-500.0,0.00019589,2]
[329206756,1718179876442,-500.0,0.00019589,2]
[329206757,1718179876457,-500.0,0.00019589,2]
[329206758,1718179876470,-500.0,0.00019589,2]
[329206759,1718179876481,-500.0,0.00019589,2]
[329206760,1718179876492,-500.0,0.00019589,2]
[329206761,1718179876507,-500.0,0.00019589,2]
[329206762,1718179876529,-500.0,0.00019589,2]
[329206763,1718179876541,-500.0,0.00019589,2]
[329206764,1718179876552,-500.0,0.00019589,2]
[329206765,1718179876574,-500.0,0.00019589,2]
[329206766,1718179876585,-778.27,0.00019589,2]
[329206767,1718179876596,-500.0,0.00019589,2]
[329206768,1718179876607,-500.0,0.00019589,2]
[329206769,1718179876619,-428.91218032,0.00019589,2]
[329206770,1718179876630,-500.0,0.00019589,2]
[329206771,1718179876641,-518.38,0.00019589,2]
[329206772,1718179876653,-500.0,0.00019589,2]
[329206773,1718179876665,-651.15,0.00019589,2]
[329206774,1718179876675,-544.62,0.00019589,2]
[329206775,1718179876686,-500.0,0.00019589,2]
[329206776,1718179876696,-500.0,0.00019589,2]